bitfinex/quotes_SOLUSD_20230904
["timestamp","ask_amount","ask_price","bid_price","bid_amount"]
[1693842788781,8.044,19.392,19.383,13.619]
[1693842788967,8.044,19.392,19.384,55.0]
[1693842789280,8.044,19.392,19.385,3.218]
[1693842797294,96.6841,19.399,19.385,3.218]
[1693842797589,8.043,19.396,19.385,3.218]
[1693842797792,8.042,19.397,19.385,3.218]
[1693842799289,64.751,19.397,19.385,3.218]
[1693842802598,8.042,19.397,19.385,3.218]
[1693842802796,8.042,19.397,19.385,58.218]
[1693842810689,8.04,19.403,19.386,1.56243953]
[1693842810997,8.039,19.404,19.391,77.352]
[1693842811190,8.039,19.405,19.391,77.352]
[1693842811399,8.039,19.405,19.392,55.0]
[1693842811703,8.039,19.405,19.395,36.295]
[1693842811907,8.039,19.405,19.396,55.0]
[1693842812094,8.039,19.405,19.398,3.216]
[1693842812288,8.039,19.405,19.398,58.216]
[1693842812604,56.677,19.408,19.399,20.0]
[1693842812605,8.038,19.408,19.399,20.0]
[1693842812806,25.967,19.409,19.401,13.607]
[1693842813000,25.967,19.409,19.402,55.0]
[1693842813001,8.038,19.407,19.402,55.0]
[1693842813306,8.038,19.407,19.402,3.216]
[1693842815206,25.967,19.409,19.402,3.216]
[1693842815501,25.967,19.409,19.399,42.68]
[1693842815502,8.038,19.408,19.399,42.68]
[1693842815707,8.038,19.408,19.402,3.216]
[1693842817106,8.037,19.409,19.402,3.216]
[1693842817292,8.037,19.41,19.402,80.894]
[1693842818202,8.036,19.411,19.402,80.894]
[1693842818409,25.964,19.412,19.402,80.894]
[1693842818608,8.036,19.411,19.402,80.894]
[1693842819409,8.036,19.412,19.402,80.894]
[1693842822009,8.035,19.413,19.402,80.894]
[1693842824607,8.035,19.415,19.402,80.894]
[1693842824803,106.9763,19.416,19.402,80.894]
[1693842825011,8.034,19.416,19.402,80.894]
[1693842825211,8.034,19.417,19.402,80.894]
[1693842827101,97.1246,19.421,19.403,21.07292475]
[1693842827300,97.1246,19.421,19.408,77.285]
[1693842827501,97.1246,19.421,19.409,75.0]
[1693842827814,8.031,19.423,19.412,36.264]
[1693842828008,8.031,19.423,19.416,13.596]
[1693842829005,64.664,19.423,19.413,10.384]
[1693842829200,64.664,19.423,19.414,3.214]
[1693842829595,8.031,19.423,19.414,3.214]
[1693842831318,8.031,19.423,19.414,58.214]
[1693842831514,8.031,19.423,19.414,3.214]
[1693842833823,8.031,19.423,19.402,53.43662334]
[1693842834018,33.988,19.418,19.412,3.214]
[1693842834328,8.033,19.419,19.412,3.214]
[1693842834619,25.951,19.421,19.412,3.214]
[1693842834823,8.032,19.42,19.412,25.88]
[1693842837018,25.949,19.423,19.412,25.88]
[1693842837200,8.032,19.421,19.412,25.88]
[1693842839715,8.032,19.422,19.413,55.0]
[1693842839918,8.032,19.422,19.415,13.596]
[1693842841012,8.031,19.423,19.416,55.0]
[1693842841323,8.031,19.423,19.418,3.213]
[1693842841523,8.031,19.423,19.417,3.213]
[1693842842018,8.031,19.423,19.411,22.667]
[1693842842019,64.664,19.423,19.411,22.667]
[1693842842225,64.664,19.423,19.416,3.213]
[1693842844529,64.664,19.423,19.415,3.213]
[1693842845223,64.664,19.423,19.41,10.385]
[1693842845926,55.0,19.422,19.407,10.387]
[1693842846122,55.0,19.422,19.41,3.214]
[1693842846123,90.636,19.418,19.41,3.214]
[1693842847026,90.636,19.418,19.41,23.214]
[1693842847214,33.988,19.418,19.41,23.214]
[1693842851731,33.988,19.418,19.41,20.0]
[1693842852030,33.988,19.418,19.409,3.214]
[1693842852738,33.988,19.418,19.408,3.215]
[1693842853429,33.988,19.418,19.405,22.673]
[1693842853430,55.0,19.417,19.402,22.677]
[1693842853618,55.0,19.417,19.399,64.15016146]
[1693842853818,90.658,19.414,19.4,30.391]
[1693842854038,55.0,19.413,19.4,30.391]
[1693842854246,34.004,19.41,19.401,3.216]
[1693842857018,34.004,19.41,19.4,20.0]
[1693842857239,34.004,19.41,19.401,3.216]
[1693842858737,8.037,19.41,19.401,3.216]
[1693842858924,118.1322,19.413,19.401,80.895]
[1693842859324,25.963,19.413,19.402,0.91045795]
[1693842859519,8.036,19.411,19.402,0.91045795]
[1693842859721,8.036,19.411,19.402,2.98552]
[1693842859722,64.704,19.411,19.402,2.98552]
[1693842859938,8.036,19.411,19.403,0.52421628]
[1693842860124,8.036,19.412,19.405,3.215]
[1693842860739,8.035,19.413,19.405,58.215]
[1693842864326,8.035,19.413,19.405,3.215]
[1693842866038,8.035,19.413,19.404,3.215]
[1693842869031,8.035,19.414,19.404,58.215]
[1693842870823,8.035,19.414,19.405,0.59659636]
[1693842871133,8.035,19.414,19.406,3.215]
[1693842872038,8.035,19.414,19.399,74.54216146]
[1693842872252,8.035,19.414,19.4,25.28892475]
[1693842872538,8.035,19.414,19.4,5.28892475]
[1693842872944,8.035,19.414,19.4,3.216]
[1693842873142,8.035,19.414,19.401,0.62312462]
[1693842873747,8.035,19.414,19.401,3.83912462]
[1693842873941,8.035,19.414,19.4,23.216]
[1693842874151,8.035,19.414,19.401,0.70736612]
[1693842874648,193.207,19.41,19.4,20.0]
[1693842874850,193.207,19.41,19.399,3.216]
[1693842876348,90.678,19.41,19.399,3.216]
[1693842876945,90.678,19.41,19.399,23.216]
[1693842878272,34.004,19.41,19.399,23.216]
[1693842883641,90.675,19.41,19.399,23.216]
[1693842885252,8.037,19.41,19.4,1.3683452]
[1693842885451,8.037,19.41,19.403,3.215]
[1693842886246,8.037,19.41,19.402,3.216]
[1693842886556,64.708,19.41,19.4,3.216]
[1693842886751,64.708,19.41,19.4,23.216]
[1693842887348,64.708,19.41,19.4,3.216]
[1693842887551,64.708,19.41,19.393,10.395]
[1693842887552,75.0,19.409,19.393,10.395]
[1693842887750,90.7,19.405,19.391,10.396]
[1693842887957,90.7,19.405,19.393,3.217]
[1693842888546,34.012,19.405,19.393,3.217]
[1693842888746,34.012,19.405,19.394,0.5213506]
[1693842889046,8.039,19.405,19.397,3.216]
[1693842889252,8.038,19.406,19.397,58.216]
[1693842889551,8.038,19.407,19.397,58.216]
[1693842889755,100.1512,19.409,19.397,58.216]
[1693842890141,8.037,19.409,19.397,58.216]
[1693842892660,8.037,19.409,19.397,58.216]
[1693842896762,8.037,19.409,19.398,0.4975634]
[1693842896963,8.037,19.409,19.399,3.216]
[1693842900793,8.036,19.412,19.4,34.16]
[1693842901062,8.036,19.411,19.405,3.215]
[1693842901446,8.036,19.411,19.405,58.215]
[1693842901862,8.036,19.413,19.405,80.889]
[1693842902166,8.035,19.415,19.405,121.909]
[1693842902761,8.035,19.415,19.405,80.889]
[1693842905352,25.949,19.423,19.411,36.265]
[1693842905554,25.949,19.423,19.412,55.0]
[1693842905857,8.032,19.422,19.415,13.596]
[1693842906548,98.2853,19.428,19.415,13.596]
[1693842906746,25.947,19.424,19.415,36.258]
[1693842907362,33.978,19.424,19.415,13.596]
[1693842907562,33.978,19.424,19.415,3.213]
[1693842907764,33.978,19.424,19.414,55.0]
[1693842907965,33.978,19.424,19.412,55.0]
[1693842908168,33.978,19.424,19.413,3.214]
[1693842908354,33.978,19.424,19.413,58.214]
[1693842914253,33.978,19.424,19.41,10.386]
[1693842914457,33.978,19.424,19.41,3.214]
[1693842914657,33.978,19.424,19.41,23.214]
[1693842915861,33.978,19.424,19.411,55.0]
[1693842916063,33.978,19.424,19.41,20.0]
[1693842916361,55.0,19.423,19.409,3.214]
[1693842916559,90.633,19.419,19.409,3.214]
[1693842917463,90.633,19.419,19.409,58.214]
[1693842917858,90.633,19.419,19.41,20.0]
[1693842918071,90.633,19.419,19.411,3.214]
[1693842920159,8.032,19.42,19.411,3.214]
[1693842920360,102.443,19.426,19.411,3.214]
[1693842920361,8.032,19.421,19.411,58.214]
[1693842921476,8.032,19.422,19.411,58.214]
[1693842922574,25.947,19.424,19.411,58.214]
[1693842922875,8.031,19.425,19.412,0.57292475]
[1693842923070,8.031,19.425,19.415,3.213]
[1693842925087,98.2853,19.428,19.414,55.0]
[1693842925287,8.031,19.425,19.415,3.213]
[1693842929780,8.031,19.425,19.414,3.214]
[1693842944398,8.03,19.426,19.414,58.214]
[1693842945391,8.03,19.427,19.414,58.214]
[1693842945989,8.03,19.427,19.415,0.57292475]
[1693842946185,8.03,19.427,19.418,36.253]
[1693842946398,8.03,19.427,19.419,55.0]
[1693842946590,8.03,19.427,19.421,3.213]
[1693842949188,8.03,19.427,19.421,58.213]
[1693842952689,8.029,19.429,19.421,58.213]
[1693842955303,8.029,19.429,19.421,55.0]
[1693842958311,8.029,19.429,19.415,15.80638516]
[1693842958692,8.029,19.429,19.412,10.385]
[1693842959090,8.029,19.429,19.414,3.214]
[1693842959895,8.029,19.429,19.414,58.214]
[1693842971316,8.029,19.429,19.419,3.213]
[1693842973815,8.029,19.429,19.417,3.213]
[1693842974001,8.029,19.429,19.416,58.213]
[1693842974510,8.029,19.429,19.413,10.384]
[1693842974511,8.029,19.429,19.411,52.54359937]
[1693842974812,8.029,19.429,19.412,3.78692475]
[1693842975833,8.029,19.429,19.412,58.78692475]
[1693842976313,55.0,19.428,19.412,55.57292475]
[1693842976513,193.066,19.424,19.413,55.0]
[1693842976815,193.066,19.424,19.406,85.74605035]
[1693842977025,34.12,19.42,19.407,21.07292475]
[1693842977317,90.643,19.417,19.407,24.28792475]
[1693842978498,90.643,19.417,19.409,1.07292475]
[1693842978698,90.643,19.417,19.409,21.07292475]
[1693842978915,90.643,19.417,19.41,55.0]
[1693842979412,90.643,19.417,19.405,41.40061791]
[1693842979613,90.643,19.417,19.4,49.73174047]
[1693842979821,90.643,19.417,19.402,3.216]
[1693842980004,90.643,19.417,19.403,1.07292475]
[1693842980717,90.643,19.417,19.403,3.215]
[1693842980919,90.643,19.417,19.404,2.07292475]
[1693842981103,90.643,19.417,19.404,57.07292475]
[1693842981700,90.643,19.417,19.404,60.28792475]
[1693842982120,90.643,19.417,19.404,57.07292475]
[1693842983314,90.643,19.417,19.4,34.12]
[1693842983507,193.186,19.412,19.401,1.07292475]
[1693842983706,55.0,19.416,19.396,69.62231163]
[1693842983707,193.224,19.408,19.397,42.5221777]
[1693842984013,193.224,19.408,19.396,65.26659447]
[1693842984014,193.224,19.408,19.399,2.07292475]
[1693842985318,34.006,19.408,19.399,5.28892475]
[1693842985520,8.038,19.408,19.402,3.216]
[1693842986524,8.038,19.408,19.401,3.216]
[1693842988215,8.038,19.408,19.401,58.216]
[1693842989010,8.038,19.408,19.402,0.60184184]
[1693842989211,8.038,19.408,19.402,3.81784184]
[1693842989516,8.037,19.409,19.402,58.216]
[1693842989722,8.037,19.409,19.403,0.67612421]
[1693842990023,8.037,19.409,19.403,3.215]
[1693842992626,8.037,19.409,19.393,43.303084]
[1693842992829,8.037,19.409,19.397,0.8327148]
[1693842993010,8.037,19.409,19.397,3.216]
[1693842994417,8.037,19.409,19.398,0.99307415]
[1693842994822,8.037,19.409,19.398,4.20907415]
[1693842995132,8.037,19.409,19.398,3.216]
[1693842995533,8.037,19.409,19.397,3.216]
[1693842995836,8.037,19.409,19.398,0.61315668]
[1693842996932,8.037,19.409,19.397,3.216]
[1693842997527,8.037,19.409,19.396,15.11128284]
[1693842997718,8.037,19.409,19.397,0.59769687]
[1693842998537,105.3179,19.409,19.397,0.59769687]
[1693842998834,105.3179,19.409,19.396,18.32828284]
[1693843000735,105.3179,19.409,19.397,0.71678846]
[1693843000940,105.3179,19.409,19.397,3.216]
[1693843001439,105.3179,19.409,19.396,18.32828284]
[1693843001833,105.3179,19.409,19.397,0.49866024]
[1693843002435,105.3179,19.409,19.396,18.32828284]
[1693843012835,105.3179,19.409,19.392,22.688]
[1693843013031,105.3179,19.409,19.394,3.217]
[1693843013229,8.037,19.409,19.395,2.22677166]
[1693843013434,8.037,19.409,19.395,57.22677166]
[1693843013735,107.5638,19.409,19.395,57.22677166]
[1693843014140,8.037,19.409,19.395,57.22677166]
[1693843014742,8.037,19.409,19.395,2.22677166]
[1693843014950,55.0,19.408,19.394,2.22677166]
[1693843015135,193.259,19.404,19.391,3.217]
[1693843015440,193.259,19.404,19.392,5.734545]
[1693843018035,34.013,19.404,19.392,5.734545]
[1693843018242,34.013,19.404,19.396,3.217]
[1693843018436,34.013,19.404,19.397,2.517545]
[1693843018649,90.702,19.404,19.397,2.517545]
[1693843019341,8.039,19.404,19.397,2.517545]
[1693843019549,8.039,19.404,19.397,5.733545]
[1693843019748,8.039,19.404,19.397,3.216]
[1693843020139,8.039,19.404,19.396,55.0]
[1693843020650,8.039,19.404,19.396,58.217]
[1693843021143,8.039,19.404,19.397,3.216]
[1693843022351,82.65,19.407,19.397,3.216]
[1693843022647,8.038,19.406,19.398,1.24108053]
[1693843022849,8.038,19.406,19.4,3.216]
[1693843023044,8.038,19.406,19.397,3.216]
[1693843023348,8.038,19.406,19.395,3.217]
[1693843023541,8.038,19.406,19.396,56.40328372]
[1693843024158,8.038,19.406,19.396,59.62028372]
[1693843024451,8.038,19.406,19.396,70.01328372]
[1693843025932,8.038,19.406,19.396,59.62028372]
[1693843028748,8.038,19.406,19.396,1.40328372]
[1693843028949,8.038,19.406,19.393,5.734545]
[1693843036558,8.038,19.406,19.394,55.0]
[1693843036751,8.038,19.406,19.395,5.734545]
[1693843036955,8.038,19.406,19.396,55.0]
[1693843037256,8.038,19.406,19.394,3.217]
[1693843037456,8.038,19.406,19.395,1.60371608]
[1693843037843,8.038,19.406,19.395,4.82071608]
[1693843041656,55.0,19.405,19.395,1.60371608]
[1693843041849,90.711,19.402,19.393,3.217]
[1693843042050,90.711,19.402,19.394,2.517545]
[1693843042562,90.711,19.402,19.394,5.734545]
[1693843042757,90.711,19.402,19.394,3.217]
[1693843043461,90.711,19.402,19.395,2.517545]
[1693843046561,90.711,19.402,19.394,2.517545]
[1693843048357,90.711,19.402,19.394,5.734545]
[1693843049160,90.711,19.402,19.394,3.217]
[1693843049350,90.711,19.402,19.394,2.517545]
[1693843049957,90.711,19.402,19.393,2.517545]
[1693843050878,90.711,19.402,19.393,5.734545]
[1693843051053,90.711,19.402,19.393,60.734545]
[1693843051054,34.016,19.402,19.393,60.734545]
[1693843055464,34.016,19.402,19.393,2.517545]
[1693843055667,34.12,19.4,19.391,2.517545]
[1693843055963,8.042,19.398,19.391,5.734545]
[1693843056558,102.561,19.404,19.391,5.734545]
[1693843056755,56.694,19.403,19.391,28.424545]
[1693843056955,25.977,19.402,19.391,28.424545]
[1693843058149,8.041,19.401,19.391,28.424545]
[1693843058385,8.041,19.401,19.394,13.611]
[1693843058560,95.9391,19.408,19.395,2.517545]
[1693843058761,8.039,19.405,19.398,13.608]
[1693843058961,8.039,19.405,19.398,3.216]
[1693843059159,8.039,19.405,19.396,3.217]
[1693843059357,64.725,19.405,19.397,0.91718909]
[1693843059967,64.725,19.405,19.396,58.217]
[1693843060168,64.725,19.405,19.396,3.217]
[1693843060370,64.725,19.405,19.397,0.67888479]
[1693843060569,64.725,19.405,19.397,3.89488479]
[1693843060769,64.725,19.405,19.397,3.216]
[1693843061381,64.725,19.405,19.395,58.217]
[1693843061569,64.725,19.405,19.396,0.73818804]
[1693843061874,64.725,19.405,19.395,1.36411873]
[1693843062657,64.725,19.405,19.396,3.217]
[1693843063675,8.039,19.405,19.396,3.217]
[1693843063865,8.039,19.405,19.396,58.217]
[1693843066071,95.9391,19.408,19.396,58.217]
[1693843066278,469.90988214,19.433,19.396,58.217]
[1693843066279,129.40848272,19.417,19.397,20.0]
[1693843066574,8.037,19.41,19.403,3.215]
[1693843066766,8.037,19.41,19.402,3.216]
[1693843067164,8.037,19.41,19.4,3.216]
[1693843067766,42.157,19.41,19.399,20.0]
[1693843067972,42.157,19.41,19.392,41.046]
[1693843067973,42.157,19.41,19.394,2.517545]
[1693843068177,42.157,19.41,19.394,57.517545]
[1693843068384,42.157,19.41,19.399,2.517545]
[1693843068763,20.0,19.409,19.399,2.517545]
[1693843068966,20.0,19.409,19.393,10.395]
[1693843068967,90.692,19.406,19.395,3.217]
[1693843069172,90.692,19.406,19.391,10.396]
[1693843069480,90.692,19.406,19.392,2.16591747]
[1693843070175,90.692,19.406,19.392,5.38291747]
[1693843070366,90.692,19.406,19.393,55.0]
[1693843070675,90.692,19.406,19.394,2.16591747]
[1693843071459,34.12,19.4,19.394,2.16591747]
[1693843071665,34.12,19.4,19.387,2.3562835]
[1693843071666,213.314,19.399,19.387,2.3562835]
[1693843072774,213.314,19.399,19.387,5.5742835]
[1693843072976,213.314,19.399,19.387,2.3562835]
[1693843073179,304.5768,19.399,19.386,15.66340205]
[1693843073674,304.5768,19.399,19.387,55.0]
[1693843074178,304.5768,19.399,19.386,18.88140205]
[1693843074372,304.5768,19.399,19.386,15.66340205]
[1693843075277,304.5768,19.399,19.387,0.51005983]
[1693843075980,304.5768,19.399,19.384,3.219]
[1693843076184,304.5768,19.399,19.385,1.66404912]
[1693843076489,304.5768,19.399,19.385,59.88204912]
[1693843076781,304.5768,19.399,19.385,56.66404912]
[1693843077167,304.5768,19.399,19.385,59.88204912]
[1693843077977,201.9908,19.399,19.385,82.57904912]
[1693843078585,145.2848,19.399,19.385,82.57904912]
[1693843079792,125.2848,19.399,19.385,82.57904912]
[1693843079978,90.821,19.4,19.39,34.12]
[1693843079979,8.041,19.4,19.39,34.12]
[1693843080181,8.04,19.401,19.393,13.612]
[1693843080487,8.04,19.401,19.394,1.66404912]
[1693843080685,8.04,19.401,19.395,3.217]
[1693843080905,8.04,19.401,19.394,3.217]
[1693843087982,8.04,19.402,19.394,3.217]
[1693843088419,8.04,19.402,19.394,25.904]
[1693843088592,8.04,19.402,19.395,55.0]
[1693843088788,8.04,19.402,19.397,3.216]
[1693843089589,8.04,19.402,19.395,55.0]
[1693843089785,8.04,19.402,19.394,55.0]
[1693843089985,8.04,19.402,19.395,0.5709233]
[1693843090680,8.04,19.402,19.395,3.217]
[1693843092098,64.735,19.402,19.394,58.217]
[1693843092300,64.735,19.402,19.394,3.217]
[1693843092519,64.735,19.402,19.393,3.217]
[1693843093521,64.735,19.402,19.392,1.35539019]
[1693843093987,64.735,19.402,19.39,2.50032018]
[1693843094189,64.735,19.402,19.39,22.50032018]
[1693843094605,64.735,19.402,19.391,3.217]
[1693843094901,64.735,19.402,19.393,3.217]
[1693843097604,8.04,19.402,19.393,25.905]
[1693843097804,8.04,19.403,19.397,3.216]
[1693843098710,8.04,19.403,19.396,3.217]
[1693843099400,8.04,19.403,19.396,58.217]
[1693843099711,100.6524,19.407,19.397,0.97908951]
[1693843099898,100.6524,19.407,19.4,13.607]
[1693843100303,8.038,19.407,19.4,13.607]
[1693843101107,8.038,19.407,19.4,3.216]
[1693843101310,8.038,19.407,19.396,65.393]
[1693843101493,8.038,19.407,19.397,3.216]
[1693843101696,8.038,19.407,19.397,58.216]
[1693843102305,8.038,19.407,19.397,80.899]
[1693843107999,64.718,19.407,19.397,80.899]
[1693843110512,64.718,19.407,19.397,58.216]
[1693843111315,8.038,19.407,19.397,58.216]
[1693843116411,110.578,19.407,19.396,15.50103092]
[1693843116924,110.578,19.407,19.397,3.216]
[1693843117925,110.578,19.407,19.397,58.216]
[1693843120227,8.038,19.407,19.397,58.216]
[1693843121027,8.038,19.407,19.397,80.899]
[1693843121920,8.038,19.407,19.397,58.216]
[1693843129530,34.12,19.41,19.397,58.216]
[1693843129716,64.718,19.407,19.397,58.216]
[1693843133460,64.718,19.407,19.397,55.0]
[1693843134323,64.718,19.407,19.397,58.216]
[1693843137349,64.718,19.407,19.397,25.899]
[1693843138745,64.718,19.407,19.398,55.0]
[1693843138944,8.038,19.407,19.4,3.216]
[1693843139138,8.038,19.407,19.4,58.216]
[1693843143732,56.671,19.41,19.4,58.216]
[1693843143934,196.6046,19.412,19.401,1.07292475]
[1693843143935,94.0896,19.412,19.401,1.07292475]
[1693843144244,8.037,19.41,19.404,13.604]
[1693843144451,94.0896,19.412,19.404,13.604]
[1693843144452,8.036,19.411,19.404,13.604]
[1693843144752,8.037,19.41,19.404,13.604]
[1693843144948,8.036,19.411,19.404,13.604]
[1693843146747,25.961,19.414,19.404,13.604]
[1693843146947,56.655,19.416,19.405,55.0]
[1693843147146,8.036,19.413,19.408,3.215]
[1693843148157,8.035,19.414,19.408,3.215]
[1693843148479,8.034,19.417,19.408,3.215]
[1693843150953,8.034,19.417,19.407,55.0]
[1693843151455,8.034,19.417,19.407,58.215]
[1693843151838,8.034,19.417,19.406,3.215]
[1693843152054,8.034,19.417,19.404,3.215]
[1693843155945,55.0,19.416,19.404,3.215]
[1693843156257,90.662,19.413,19.403,3.215]
[1693843156458,34.008,19.407,19.401,3.216]
[1693843157358,8.038,19.407,19.401,3.216]
[1693843157856,8.038,19.408,19.401,25.895]
[1693843158054,8.038,19.408,19.401,80.895]
[1693843158256,8.038,19.408,19.401,58.216]
[1693843163759,8.038,19.408,19.401,3.216]
[1693843164361,8.038,19.408,19.401,25.895]
[1693843164568,34.12,19.41,19.401,25.895]
[1693843164569,42.157,19.41,19.401,25.895]
[1693843165062,42.157,19.41,19.401,3.216]
[1693843165251,98.828,19.41,19.401,3.216]
[1693843168370,20.0,19.409,19.401,3.216]
[1693843168549,34.008,19.407,19.396,15.50103092]
[1693843168754,34.008,19.407,19.398,3.216]
[1693843175872,34.008,19.407,19.397,55.0]
[1693843176085,34.008,19.407,19.394,10.394]
[1693843176267,34.008,19.407,19.396,3.217]
[1693843176470,34.008,19.407,19.395,4.41660301]
[1693843176667,34.008,19.407,19.395,3.217]
[1693843176876,34.008,19.407,19.396,2.22058101]
[1693843177278,34.008,19.407,19.396,5.43758101]
[1693843177470,34.008,19.407,19.396,3.217]
[1693843178591,34.008,19.407,19.395,3.217]
[1693843178901,34.008,19.407,19.396,2.47024757]
[1693843179202,34.008,19.407,19.395,3.217]
[1693843179786,34.008,19.407,19.393,12.88316577]
[1693843179787,34.008,19.407,19.394,3.217]
[1693843179986,90.71,19.403,19.395,2.48816577]
[1693843180184,90.71,19.403,19.393,3.217]
[1693843180402,90.71,19.403,19.394,3.217]
[1693843181309,90.71,19.403,19.39,2.517545]
[1693843181608,90.71,19.403,19.393,3.217]
[1693843181807,90.71,19.403,19.394,2.517545]
[1693843182008,90.71,19.403,19.393,3.217]
[1693843182191,90.71,19.403,19.394,2.517545]
[1693843182392,90.71,19.403,19.394,5.734545]
[1693843182591,90.71,19.403,19.394,3.217]
[1693843182993,90.71,19.403,19.395,2.517545]
[1693843183198,90.71,19.403,19.394,3.217]
[1693843184595,90.71,19.403,19.394,2.517545]
[1693843184998,90.71,19.403,19.394,3.217]
[1693843185508,90.71,19.403,19.394,2.517545]
[1693843185803,34.016,19.403,19.394,3.217]
[1693843186106,34.016,19.403,19.395,2.517545]
[1693843186317,34.016,19.403,19.397,3.216]
[1693843187315,8.04,19.403,19.397,3.216]
[1693843187713,56.668,19.412,19.397,58.216]
[1693843187913,56.668,19.412,19.398,2.517545]
[1693843188106,28.037,19.409,19.401,13.607]
[1693843188300,28.037,19.409,19.402,55.0]
[1693843188501,28.037,19.409,19.404,3.215]
[1693843189213,28.037,19.409,19.402,55.0]
[1693843189405,28.037,19.409,19.402,3.216]
[1693843191212,97.0711,19.414,19.402,3.216]
[1693843191406,105.1061,19.414,19.403,1.07292475]
[1693843191611,105.1061,19.414,19.406,13.603]
[1693843192113,8.035,19.414,19.406,3.215]
[1693843204510,8.035,19.414,19.405,55.0]
[1693843204710,8.035,19.414,19.405,58.215]
[1693843204915,8.035,19.414,19.406,55.0]
[1693843205214,8.035,19.414,19.407,3.215]
[1693843205413,8.035,19.414,19.407,58.215]
[1693843206920,8.035,19.414,19.401,15.76506955]
[1693843207111,64.695,19.414,19.402,1.07292475]
[1693843207307,64.695,19.414,19.402,4.28892475]
[1693843207628,64.695,19.414,19.401,1.07292475]
[1693843208008,193.224,19.408,19.397,2.07292475]
[1693843208307,193.224,19.408,19.397,5.28892475]
[1693843208509,193.224,19.408,19.398,20.0]
[1693843208719,193.224,19.408,19.399,2.07292475]
[1693843208917,96.5053,19.407,19.393,30.394]
[1693843209119,193.269,19.403,19.388,22.693]
[1693843209417,193.269,19.403,19.393,2.517545]
[1693843209816,193.269,19.403,19.393,5.734545]
[1693843210019,90.707,19.403,19.393,5.734545]
[1693843210222,90.707,19.403,19.393,3.217]
[1693843210415,90.707,19.403,19.394,2.517545]
[1693843210609,90.707,19.403,19.394,5.734545]
[1693843210813,90.707,19.403,19.394,3.217]
[1693843211110,90.707,19.403,19.395,2.517545]
[1693843211308,90.707,19.403,19.394,3.217]
[1693843212126,90.707,19.403,19.395,2.517545]